Cogmind - Beta 13 @@@ ROGUE MODE // 2024.06.01 @ 08:49:59 Player: Enzo Result: Destroyed by HS-TTL(R) with Subdweller Laser Performance ------------- Evolutions (0) 0 Regions Visited (2) 400 Robots Destroyed (37) 185 Value Destroyed (931) 931 Prototype IDs (5) 100 Alien Tech Used (0) 0 Bonus (0) 0 TOTAL SCORE: 1616 Bonus ------- None Cogmind --------- Core Integrity 0/250 Matter 290/300 Energy 185/200 System Corruption 0% Temperature Cool (6) Movement Rolling (110) Location -10/Subcaves Parts ------- > --- POWER (1) -------- Subdweller Power Source > --- PROPULSION (2) --- Subdweller Monowheel Subdweller Monowheel > --- UTILITY (2) ------ Small Storage Unit Signal Interpreter > --- WEAPON (2) ------- Subdweller Machine Gun Grenade Launcher > --- INVENTORY (8) ---- Subdweller Power Source Subdweller Monowheel Structural Scanner Improved Terrain Scanner Subdweller Laser Battle Cannon Mining Laser Peak State ------------ > --- POWER ------------ Subdweller Power Source > --- PROPULSION ------- Subdweller Monowheel Subdweller Monowheel > --- UTILITY ---------- Small Storage Unit Signal Interpreter > --- WEAPON ----------- Subdweller Beam Cannon Subdweller Machine Gun > --- INVENTORY -------- Structural Scanner Improved Terrain Scanner Scrap Shield Grenade Launcher Subdweller Shrapnel Launcher Mining Laser [Rating: 13] Favorites ----------- Power Ion Engine Engine Ion Engine Propulsion Subdweller Monowheel Treads Light Treads Wheel Subdweller Monowheel Utility Small Storage Unit Device Structural Scanner Storage Small Storage Unit Processor Signal Interpreter Weapon Beam Cannon Energy Gun Small Laser Energy Cannon Beam Cannon Ballistic Gun Subdweller Machine Gun Ballistic Cannon Light Cannon Launcher Grenade Launcher Special Weapon Mining Laser Build | -11 -10 -10 ------- Run | Yrd Mat Sub Slots Evolved . | . . . Power . | . . . Propulsion . | . . . Utility . | . . . Weapon . | . . . Parts Attached 48 | 6 18 24 Power 7 | 1 1 5 Engine 7 | 1 1 5 Core . | . . . Reactor . | . . . Propulsion 12 | 2 4 6 Treads 3 | . 2 1 Leg . | . . . Wheel 9 | 2 2 5 Hover . | . . . Flight . | . . . Utility 3 | 1 2 . Device 1 | . 1 . Storage 1 | 1 . . Processor 1 | . 1 . Hackware . | . . . Protection . | . . . Artifact . | . . . Weapon 26 | 2 11 13 Energy Gun 2 | 1 . 1 Energy Cannon 7 | . 5 2 Ballistic Gun 6 | 1 . 5 Ballistic Cannon 4 | . 3 1 Launcher 6 | . 2 4 Special Weapon 1 | . 1 . Impact Weapon . | . . . Slashing Weapon . | . . . Piercing Weapon . | . . . Special Melee Weapon . | . . . Unidentified Prototypes . | . . . Parts Lost 6 | . . 6 Power 1 | . . 1 Propulsion 1 | . . 1 Utility . | . . . Weapon 4 | . . 4 Highest Loss Streak 2 | . . 2 To Critical Strikes 1 | . . 1 Average Slot Usage (%) 99 | . 99 99 Engine 13 | . 14 13 Treads 8 | . 12 5 Wheel 19 | . 15 22 Device 2 | . 7 . Storage 14 | . 14 14 Processor 11 | . 6 14 Energy Cannon 10 | . 13 8 Ballistic Gun 7 | . 1 12 Ballistic Cannon 5 | . 12 . Launcher 3 | . . 5 Naked Turns . | . . . Heaviest Build 26 | 13 17 26 Greatest Support 40 | 32 40 40 Greatest Overweight (x) 1 | . . 1 Average Overweight (x) . | . . . Largest Inventory Capacity 8 | 8 8 8 Average Capacity 7 | 7 8 8 Most Carried 8 | 8 8 8 Average Carried 6 | 3 7 6 Final Capacity 8 | 8 8 8 Final Carried 8 | 8 7 7 Class Distribution -------------------- 59% | Mutant 40% | Scavenger-Mutant Dominant Class ---------------- Mutant | -10/Materials Scavenger-Mutant | -10/Subcaves Resources | -11 -10 -10 ----------- Run | Yrd Mat Sub Matter Collected 1125 | 281 244 600 Remotely . | . . . Salvage Created 1079 | 81 304 694 Parts 92 | 6 36 50 Haulers Intercepted 1 | . 1 . Recyclers Shooed . | . . . Parts Field Recycled . | . . . Retrieved Matter . | . . . Parts Self-Destructed 9 | . . 9 Prevented . | . . . Kills | -11 -10 -10 ------- Run | Yrd Mat Sub Combat Hostiles Destroyed 30 | . 11 19 Guns 10 | . 2 8 Cannons 11 | . 6 5 AOE 9 | . 3 6 Classes Destroyed 8 | 2 5 1 Tunneler 1 | 1 . . Hauler 1 | . 1 . Recycler 1 | 1 . . Operator 1 | . 1 . Watcher 3 | . 3 . Swarmer 11 | . 9 2 Grunt 3 | . 2 1 Subdweller 16 | . . 16 Best Kill Streak 5 | 2 4 5 Combat Bots Only 5 | . 3 5 Max Kills in Single Turn 2 | 1 2 2 Gunslinging 1 | . . 1 Exploded 2 | . 2 2 Melee . | . . . Uniques/NPCs Destroyed . | . . . Combat | -11 -10 -10 -------- Run | Yrd Mat Sub Hostile Shots Fired 95 | . 25 70 Missed 25 | . 6 19 Damage Taken 1553 | . 157 1396 Core 263 | . 35 228 Absorbed by Shields . | . . . Regen/Repaired (Parts) 46 | . 46 . Core Remaining (%) 100 | 100 . . Volleys Fired 112 | 7 26 79 Largest 2 | 2 2 2 Hottest 110 | 60 100 110 Shots Fired 193 | 14 47 132 Gun 93 | 14 6 73 Cannon 84 | . 37 47 Launcher 15 | . 3 12 Special 1 | . 1 . Kinetic 100 | 7 21 72 Thermal 81 | 7 23 51 Explosive 12 | . 3 9 Electromagnetic . | . . . Robot Hit Streak 25 | 2 5 25 Robot Miss Streak 4 | 4 4 3 Penetration Max . | . . . Secondary Targets 2 | . . 2 Max Gunslinging Chain 1 | . . 1 Shots Hit Robots 121 | 5 24 92 Core Hits 57 | 2 18 37 Critical Kills . | . . . Critical Parts Destroyed . | . . . Critical Strikes . | . . . Melee Attacks . | . . . Impact . | . . . Slashing . | . . . Piercing . | . . . Sneak Attacks . | . . . Combat Hostiles . | . . . Follow-up Attacks . | . . . Damage Inflicted 2831 | 69 610 2152 Guns 1047 | 69 73 905 Cannons 1102 | . 337 765 Explosions 682 | . 200 482 Melee . | . . . Ramming . | . . . Kinetic 1237 | 45 148 1044 Thermal 1120 | 24 262 834 Explosive 474 | . 200 274 Electromagnetic . | . . . Impact . | . . . Slashing . | . . . Piercing . | . . . Highest Corruption . | . . . Average Corruption . | . . . Corruption Purged . | . . . Corruption Blocked . | . . . Overload Shots . | . . . Overflow Damage 43 | . 22 21 Projectiles 22 | . 22 . Explosions 21 | . . 21 Melee . | . . . Knockbacks 3 | . 2 1 Impact . | . . . Kinetic 3 | . 2 1 Secondary . | . . . Self-Inflicted Damage 45 | . . 45 Shots 1 | . . 1 Rammed . | . . . Targets Rammed . | . . . Kicked . | . . . Crushed . | . . . Highest Temperature 108 | 20 108 16 Average Temperature 25 | 20 38 4 Received Heat Transfer 189 | . 6 183 Siege Activations . | . . . Robots Corrupted . | . . . Combat Hostiles . | . . . Parts Fried . | . . . Impact Corruptions . | . . . Robots Melted . | . . . Combat Hostiles . | . . . Parts Melted 1 | . . 1 Heat Transferred 2074 | 50 555 1469 Parts Sabotaged . | . . . Parts Stolen . | . . . Parts Stripped . | . . . Power Chain Reactions . | . . . Alert | -11 -10 -10 ------- Run | Yrd Mat Sub Peak Influence 299 | 10 299 . Initial 6 | . 6 . Average 58 | 1 66 . Maximum Alert Level 1 | . 1 . Low Security (%) 94 | 100 93 . Level 1 5 | . 6 . Level 2 . | . . . Level 3 . | . . . Level 4 . | . . . Level 5 . | . . . High Security . | . . . Max Security . | . . . Squads Dispatched 1 | . 1 . Investigation 1 | . 1 . Extermination . | . . . Reinforcement . | . . . Assault . | . . . Garrison . | . . . Intercept . | . . . Searches Triggered . | . . . Construction Impeded . | . . . Haulers Reinforced . | . . . Active Scanning Responses . | . . . Cargo Convoy Interrupts . | . . . Stealth | -11 -10 -10 --------- Run | Yrd Mat Sub Distress Signals . | . . . Communications Jammed . | . . . Distress Signals . | . . . Times Spotted 39 | . 16 23 Peak Tracking Total 4 | . 4 4 Tactical Retreats 1 | . . 1 Traps | -11 -10 -10 ------- Run | Yrd Mat Sub Traps Triggered 3 | . 3 . Indirectly . | . . . Trap Hack Attempts . | . . . Triggered . | . . . Disarmed . | . . . Reprogrammed . | . . . Reused . | . . . Traps Extracted . | . . . Installed 2 | . . 2 Triggered 1 | . . 1 Machines | -11 -10 -10 ---------- Run | Yrd Mat Sub Machines Disabled . | . . . Max in Single Turn . | . . . Machines Repaired . | . . . Machines Dismantled . | . . . Machines Sabotaged . | . . . Overloaded Fab Kills . | . . . Hacking | -11 -10 -10 --------- Run | Yrd Mat Sub Machines Accessed 9 | . 8 1 Terminals 7 | . 7 . Fabricators . | . . . Repair Stations 1 | . 1 . Recycling Units . | . . . Scanalyzers . | . . . Garrison Access . | . . . Total Hacks 32 | . 29 3 Successful 17 | . 14 3 Failed 15 | . 15 . Catastrophic 2 | . 2 . Database Lockouts . | . . . Manual 11 | . 11 . Terminals 27 | . 27 . Fabricators . | . . . Repair Stations 2 | . 2 . Recycling Units . | . . . Scanalyzers . | . . . Garrison Access . | . . . Terminal Hacks 10 | . 7 3 Record 3 | . . 3 Prototype ID Bank 2 | . 2 . Emergency Access Points 1 | . 1 . Terminal Index 1 | . 1 . Unreport Threat 1 | . 1 . Locate Traps 2 | . 2 . Fabricator Hacks . | . . . Repair Station Hacks 2 | . 2 . Scan Component 1 | . 1 . Repair 1 | . 1 . Recycling Unit Hacks . | . . . Scanalyzer . | . . . Garrison Access Hacks . | . . . Unauthorized Hacks 5 | . 5 . Terminals 5 | . 5 . Botnet 5 | . 5 . Fabricators . | . . . Repair Stations . | . . . Recycling Units . | . . . Scanalyzers . | . . . Garrison Access . | . . . Data Cores Recovered 1 | . 1 . Used . | . . . Hacking Detections 8 | . 8 . Full Trace Events . | . . . Feedback Events . | . . . Feedback Blocked . | . . . Robot Schematics Acquired . | . . . Robots Built . | . . . Authchips . | . . . Time . | . . . Total Robot Build Rating . | . . . Part Schematics Acquired . | . . . Parts Built . | . . . Authchips . | . . . Time . | . . . Total Part Build Rating . | . . . Parts Repaired 1 | . 1 . Time 26 | . 26 . Parts Recycled . | . . . Recycled Matter . | . . . Retrieved Matter . | . . . Retrieved Components . | . . . Parts Scanalyzed . | . . . Part Schematics Acquired . | . . . Parts Damaged . | . . . Bothacking | -11 -10 -10 ------------ Run | Yrd Mat Sub Used RIF Installer . | . . . Robots Hacked . | . . . Non-combat . | . . . Combat . | . . . Robot Hacks Applied . | . . . Relay Couplers Released . | . . . Fabnet Peak Effective % . | . . . Robots Rewired . | . . . Allies Hacked . | . . . Hacks Repelled . | . . . Allies | -11 -10 -10 -------- Run | Yrd Mat Sub Total Allies . | . . . Largest Group . | . . . Highest-Rated Group . | . . . Highest-Rated Ally . | . . . Total Orders . | . . . Ally Attacks . | . . . Total Damage . | . . . Kills . | . . . Allies Corrupted . | . . . Allies Melted . | . . . Intel | -11 -10 -10 ------- Run | Yrd Mat Sub Robot Analysis Total . | . . . Derelict Logs Recovered . | . . . Drone Launches . | . . . Drone Recoveries . | . . . Exploration | -11 -10 -10 ------------- Run | Yrd Mat Sub Turns Passed 2504 | 129 965 1410 Spaces Moved 1789 | 97 704 988 Core 16 | 16 . . Treads 279 | . 212 67 Legs . | . . . Wheels 1494 | 81 492 921 Hover . | . . . Flight . | . . . Fastest Speed 50 | 50 90 110 Average Speed 112 | 91 111 115 Slowest Speed 160 | 100 160 160 Overloaded Moves . | . . . Propulsion Burnouts . | . . . Robots Hopped . | . . . Cave-ins Triggered . | . . . Exploration Rate (%) 57 | 4 97 70 Regions Visited 2 Branch Regions 1 Pre-discovered Areas . | . . . Known Exits Taken 1 | . 1 . Unknown Exits Taken 1 | 1 . . Scrap Searched 2 | . . 2 Spaces Dug 8 | . 8 . Terrain Destroyed 76 | . 22 54 Melee . | . . . Projectile 1 | . 1 . AOE 75 | . 21 54 Terrain Rammed . | . . . Walls Destroyed . | . . . Machines Disabled . | . . . Actions | -11 -10 -10 --------- Run | Yrd Mat Sub Total 2084 | 120 834 1130 Wait 87 | 3 72 12 Move 1787 | 96 703 988 Hop . | . . . Pick Up 22 | 8 5 9 Fast Attach 23 | 6 7 10 Attach 6 | . . 6 Detach 2 | . 1 1 Swap 19 | . 11 8 Drop 24 | . 9 15 Fire 112 | 7 26 79 Melee . | . . . Ram . | . . . Kick . | . . . Crush . | . . . Escape Stasis . | . . . Rewire . | . . . Trap 2 | . . 2 Miscellaneous . | . . . Route ------- -11/Scrapyard -10/Materials (discovered 6 exits: *Mat x3 / [*Min x2] / *Sub) -10/Subcaves (discovered 3 exits: *Mat x2 / Rec) History --------- Turn | Location | Event 23 | -11/Scrapyard | Discovered new exit (range 15) 130 | -11/Scrapyard | Entered Materials 242 | -10/Materials | Discovered new exit (range 16) 312 | -10/Materials | Build established: Mutant 334 | -10/Materials | Discovered new exit (range 14) 433 | -10/Materials | Discovered new exit (range 10) 488 | -10/Materials | Discovered new exit (range 8) 577 | -10/Materials | Discovered new exit (range 9) 651 | -10/Materials | Identified exit to Subcaves 681 | -10/Materials | Discovered new exit (range 10) 705 | -10/Materials | Identified exit to Materials 824 | -10/Materials | Repaired Beam Cannon 1095 | -10/Materials | Entered Subcaves 1097 | -10/Subcaves | Ambushed by Subdweller buried in earth 1212 | -10/Subcaves | Ambushed by swarm of Subdwellers 1256 | -10/Subcaves | Core integrity fell below 50% 1336 | -10/Subcaves | Shifting Twisted Machinery released Sub. Machine Gun 1370 | -10/Subcaves | Shifting Twisted Machinery released Scrap Shield 1494 | -10/Subcaves | Ambushed by Subdwellers from Twisted Machinery 1515 | -10/Subcaves | Core integrity fell below 20% 1600 | -10/Subcaves | Shifting Twisted Machinery released Sub. Power Source 1613 | -10/Subcaves | Shifting Twisted Machinery released Sub. Power Source 1615 | -10/Subcaves | Build established: Scavenger-Mutant 1682 | -10/Subcaves | Discovered new exit (range 5) 1686 | -10/Subcaves | Identified exit to Materials 1809 | -10/Subcaves | Shifting Twisted Machinery released Spk. Treads 1814 | -10/Subcaves | Shifting Twisted Machinery released Shrapnel Trap 2262 | -10/Subcaves | Discovered exit to Materials (range 15) 2338 | -10/Subcaves | Visited Clippyterm 2341 | -10/Subcaves | Identified exit to Recycling 2505 | -10/Subcaves | Destroyed by HS-TTL(R) with Subdweller Laser Last Messages --------------- >>Record! "Clippyterm" Welcome to Clippyterm v0.53, my misguided attempt to resurrect an ancient AI. I give up. There must be something fundamentally wrong with the algorithm, because no matter how much data I collect to feed it, half the time it still manages to suggest unhelpful sample queries and responses. --DD-NU8 >>Intel! "^q" It looks like you're in search of a way out of here, would you like help? >>Record! "01-MTF" It looks like you're after the notorious thief from 0b1. I don't know where they are, but my data indicates that someone they're looking for is frequently seen in Scraptown. 02399_ Sub. Machine Gun destroyed. 02413_ ZP-CH8(R) destroyed. 02427_ Acquired 27 matter. 02446_ Acquired 4 matter. Map ----- +----------------------------------------------------+ | ?????????????????????????????????????????????????? | | ?????????????????????????????????????????????????? | | ?????????????????????????????????????????????????? | | ?????????????????????????????????????????????????? | | ?????????????????????????????????????????????????? | | ?????????????????????????????????????????????????? | | ??????????????????????????####???????????????????? | | ???????????????###????????# ##??????????????????? | | ??????????????## ###?###??# ##?????????????????? | | ??????????????# ### ##?# ##????????????????? | | ??????????????# #?## ##???????????????? | | ????????????### #??## ####?????????#### | | ????????????# ##??## #####??##?# | | ????????????#" ## ##??# ### #?# | | ????????? "" ?## ##### #?# | | ???????# # ""??#### ### ### | | ???????## ?# ?????# ## # # | | ????????# ?? ??????# # #? ?## | | ????????#?? ????### ### | #????# | | ?????????? """ ?????# % ##?#* ##????## | | ????????? ?"" ### ## ##??# ! ##????## | | ?????????#???"?? R ?## #??## ##???## | | ????????????? ???# ??# ###### ##?## | | ?????????????????#### #?# # ## #?# | | ????????????????????## ## ### | | ?????????????????????# @ ## ### | | ????????????????????# ### ## ####### ##### | | ????????????????????####??########?????## #### | | ????????????????????????????????????????## | | ?????????????????????????????????????????## | | ??????????????????????????????????????????#### | | ????????????????????????????????????????????## | | ????????????????????????????????????????????# ### | | ????????????????????????????????????????????# #?# | | ???????????????????????????????????????????## #?? | | ??????????????????????????????????????????## ##?? | | ?????????????????????????????????????????## #??# | | ??????????????????????????????????########" ##??# | | ??????????????????????????????????#"""## "" #???# | | ??????????????????????????????????#"" ## ##?## | | ??????????????????????????????????#"X ### | | ??????????????????????????????????#"" ## ### | | ??????????????????????????????????#"""### ### | | ??????????????????????????????????#####?# # # | | ????????????????????????????????????????# | | ????????????????????????????????????????# ### | | ???????????????????????????????????????#""""#?##"" | | ???????????????????????????????????????# "??## | | ##?????????????????????????????????????# "##??## | | #??????????????????????????????????## ###????# | +----------------------------------------------------+ Best States ------------- Heat Dissipation 25 Energy Generation 15 Energy Capacity 250 Matter Stores 300 Matter Capacity 300 Sight Range 16 Terrain Scan Density 10 Evasion (%) 50 Recoil Reduction 2 Item Schematics ----------------- None Robot Schematics ------------------ None Fabricated ------------ Nothing Alien Tech Used ----------------- None Achievements -------------- None Challenges ------------ None Game ------ Seed PhasingGravmagRailgun Manual? 0 Play Time 00:30:11 Cumulative 68.7 hours Start 2024.06.01 @ 08:17:42 End 2024.06.01 @ 08:49:59 Sessions 1 Manual Loads 0 Difficulty Rogue Special Mode None Game No. 145 Rogue 145 Adventurer 0 Explorer 0 Win Type - Total 0 Types 0/0/0/0/0/0/0/0/0 Lore% 40 Gallery% 45 Achievement% 38 Wizard Run 0 Options --------- Layout 1 ASCII 0 Keyboard 0 Movement Numpad Keybinds 0 Fullscreen 2 Font 32/SmallcapsGlow Map View 50x35 Zoom Use 0% Tactical HUD 1 Map Filters NONE Filters NONE Steam 1 RUN: 5fbd1860-0aca-4a4e-94c3-140b6a7e559f